bitfinex/quotes_BTCUSD_20240927
["timestamp","ask_amount","ask_price","bid_price","bid_amount"]
[1727453199878,0.04179533,66268.0,66267.0,0.480538]
[1727453200120,0.01813747,66268.0,66267.0,0.480538]
[1727453200353,0.002656,66268.0,66267.0,0.480538]
[1727453200805,0.152558,66268.0,66267.0,0.301634]
[1727453201035,0.16910476,66268.0,66267.0,0.315634]
[1727453201267,0.16906756,66268.0,66267.0,0.329634]
[1727453201740,0.26906756,66268.0,66267.0,0.329634]
[1727453202202,0.26806756,66268.0,66267.0,0.315634]
[1727453202447,0.26806756,66268.0,66267.0,0.301634]
[1727453202690,0.26806756,66268.0,66267.0,0.315634]
[1727453203127,0.252558,66268.0,66267.0,0.301634]
[1727453203354,0.001656,66268.0,66267.0,0.329634]
[1727453203578,0.001656,66268.0,66267.0,0.64014668]
[1727453203983,0.001656,66268.0,66267.0,0.62614668]
[1727453204218,0.001656,66268.0,66267.0,0.65414668]
[1727453204441,0.001656,66268.0,66267.0,0.480538]
[1727453204927,0.152558,66268.0,66267.0,0.329634]
[1727453205162,0.001656,66268.0,66267.0,0.329634]
[1727453205627,0.001656,66268.0,66267.0,0.315634]
[1727453205862,0.001656,66268.0,66267.0,0.329634]
[1727453205863,0.152558,66268.0,66267.0,0.329634]
[1727453206086,0.152558,66268.0,66267.0,0.301634]
[1727453206287,0.152558,66268.0,66267.0,0.329634]
[1727453206762,0.152558,66268.0,66267.0,0.315634]
[1727453207207,0.152558,66268.0,66267.0,0.329634]
[1727453207432,0.001656,66268.0,66267.0,0.329634]
[1727453208128,0.152558,66268.0,66267.0,0.329634]
[1727453214354,0.152558,66268.0,66267.0,0.50324268]
[1727453215051,0.152558,66268.0,66267.0,0.329634]
[1727453218275,0.001656,66268.0,66267.0,0.329634]
[1727453218722,0.152558,66268.0,66267.0,0.329634]
[1727453219463,0.001656,66268.0,66267.0,0.73384668]
[1727453220407,0.001656,66268.0,66267.0,0.70584668]
[1727453220631,0.001656,66268.0,66267.0,0.73384668]
[1727453220849,0.001656,66268.0,66267.0,0.71984668]
[1727453221080,0.001656,66268.0,66267.0,0.70584668]
[1727453221315,0.001656,66268.0,66267.0,0.71984668]
[1727453221786,0.001656,66268.0,66267.0,0.466538]
[1727453222034,0.001656,66268.0,66267.0,0.315634]
[1727453222258,0.001656,66268.0,66267.0,0.466538]
[1727453222486,0.001656,66268.0,66267.0,0.315634]
[1727453222711,0.001656,66268.0,66267.0,0.466538]
[1727453222953,0.001656,66268.0,66267.0,0.480538]
[1727453223184,0.001656,66268.0,66267.0,0.466538]
[1727453223401,0.001656,66268.0,66267.0,0.452538]
[1727453223636,0.001656,66268.0,66267.0,0.466538]
[1727453223863,0.001656,66268.0,66267.0,0.480538]
[1727453224093,0.001556,66268.0,66267.0,0.480538]
[1727453224336,0.001556,66268.0,66267.0,0.466538]
[1727453224802,0.001556,66268.0,66267.0,0.480538]
[1727453225304,0.001556,66268.0,66267.0,0.88058057]
[1727453225544,0.001556,66268.0,66267.0,0.65414668]
[1727453226453,0.001556,66268.0,66267.0,0.62614668]
[1727453226683,0.001556,66268.0,66267.0,0.64014668]
[1727453226943,0.001556,66268.0,66267.0,0.65414668]
[1727453229033,0.001556,66268.0,66267.0,0.64014668]
[1727453229275,0.001556,66268.0,66267.0,0.65395607]
[1727453229560,0.001556,66268.0,66267.0,0.78955607]
[1727453230040,0.001556,66268.0,66267.0,0.80355607]
[1727453230517,0.001556,66268.0,66267.0,0.81055607]
[1727453230773,0.001556,66268.0,66267.0,1.03484401]
[1727453231951,0.001596,66268.0,66267.0,1.03484401]
[1727453232173,0.001596,66268.0,66267.0,1.04884401]
[1727453232385,0.001596,66268.0,66267.0,1.03484401]
[1727453232599,0.001596,66268.0,66267.0,1.02084401]
[1727453232802,0.001596,66268.0,66267.0,1.33467201]
[1727453233053,0.001596,66268.0,66267.0,1.36767201]
[1727453233271,0.00036979,66279.0,66278.0,0.382479]
[1727453233534,0.00036979,66279.0,66278.0,0.987209]
[1727453234981,0.00036979,66279.0,66278.0,0.755609]
[1727453235677,0.00036979,66279.0,66278.0,0.60473]
[1727453235895,0.00036979,66279.0,66278.0,0.61873]
[1727453236096,0.00036979,66279.0,66278.0,0.783609]
[1727453238495,0.00036979,66279.0,66278.0,0.63273]
[1727453238733,0.15124679,66279.0,66278.0,0.63273]
[1727453238978,0.38634679,66279.0,66278.0,0.63273]
[1727453239445,0.48634679,66279.0,66278.0,0.63273]
[1727453239710,0.64163473,66279.0,66278.0,0.63273]
[1727453239931,0.64163473,66279.0,66278.0,0.61873]
[1727453239932,0.84750977,66279.0,66278.0,0.61873]
[1727453240611,0.95964982,66279.0,66278.0,0.63273]
[1727453240842,0.84750977,66279.0,66278.0,0.63273]
[1727453241539,0.84750977,66279.0,66278.0,0.61873]
[1727453241791,0.84750977,66279.0,66278.0,0.63273]
[1727453241792,1.13340384,66279.0,66278.0,0.63273]
[1727453242031,0.87050977,66279.0,66278.0,0.47373]
[1727453242411,0.87050977,66279.0,66278.0,0.45973]
[1727453243007,0.87050977,66279.0,66278.0,0.44573]
[1727453243243,0.84750977,66279.0,66278.0,0.45673]
[1727453243445,0.98316322,66279.0,66278.0,0.46773]
[1727453243800,0.84750977,66279.0,66278.0,0.45673]
[1727453244042,0.84750977,66279.0,66278.0,0.46073]
[1727453244252,0.84750977,66279.0,66278.0,0.45673]
[1727453244726,0.84750977,66279.0,66278.0,0.44573]
[1727453245010,0.64642036,66279.0,66278.0,0.44573]
[1727453245260,0.8473104,66279.0,66278.0,0.46173]
[1727453245501,0.55884378,66279.0,66278.0,0.46173]
[1727453245739,0.69209612,66279.0,66278.0,0.45673]
[1727453245980,0.49162036,66279.0,66278.0,0.46773]
[1727453246446,0.49162036,66279.0,66278.0,0.45673]
[1727453246683,0.55885964,66279.0,66278.0,0.45673]
[1727453246913,0.49162036,66279.0,66278.0,0.44573]
[1727453247140,0.49162036,66279.0,66278.0,0.45773]
[1727453247381,0.49162036,66279.0,66278.0,0.44573]
[1727453247611,0.49162036,66279.0,66278.0,0.45973]
[1727453247846,0.49162036,66279.0,66278.0,0.47173]
[1727453247847,0.69199971,66279.0,66278.0,0.47173]
[1727453248295,0.69201669,66279.0,66278.0,0.45973]
[1727453248815,0.69201669,66279.0,66278.0,0.47373]
[1727453252052,0.80404552,66279.0,66278.0,0.47373]
[1727453252792,0.80404552,66279.0,66278.0,0.773558]
[1727453253243,0.82769822,66279.0,66278.0,0.773558]
[1727453254605,0.80404552,66279.0,66278.0,0.773558]
[1727453257089,0.6919797,66279.0,66278.0,0.773558]
[1727453257529,0.82645869,66279.0,66278.0,0.773558]
[1727453258672,1.05289258,66279.0,66278.0,0.773558]
[1727453258896,0.8456797,66279.0,66278.0,0.773558]
[1727453259385,1.04634927,66279.0,66278.0,0.773558]
[1727453259850,1.08434927,66279.0,66278.0,0.773558]
[1727453260073,1.36412879,66279.0,66278.0,0.615458]
[1727453260317,1.36412879,66279.0,66278.0,0.601458]
[1727453260537,1.36412879,66279.0,66278.0,0.587458]
[1727453260780,1.36612879,66279.0,66278.0,0.599458]
[1727453261020,1.36612879,66279.0,66278.0,0.595458]
[1727453261021,1.36412879,66279.0,66278.0,0.595458]
[1727453261306,1.20774073,66279.0,66278.0,0.595458]
[1727453261560,0.92796121,66279.0,66278.0,0.595458]
[1727453261779,0.92996121,66279.0,66278.0,0.587458]
[1727453262000,0.92996121,66279.0,66278.0,0.592458]
[1727453262469,1.08634927,66279.0,66278.0,0.592458]
[1727453262689,1.37991819,66279.0,66278.0,0.592458]
[1727453263378,1.40357546,66279.0,66278.0,0.592458]
[1727453264506,1.35929395,66279.0,66278.0,0.592458]
[1727453264966,1.16990589,66279.0,66278.0,0.592458]
[1727453265408,0.73142637,66279.0,66278.0,0.592458]
[1727453266137,0.73014332,66279.0,66278.0,0.592458]
[1727453270176,0.77444606,66279.0,66278.0,0.592458]
[1727453270434,0.77444606,66279.0,66278.0,0.594116]
[1727453270902,1.05279462,66279.0,66278.0,0.594116]
[1727453271144,0.86057453,66279.0,66278.0,0.594116]
[1727453271390,0.80229679,66279.0,66278.0,0.594116]
[1727453272324,0.50320868,66269.0,66268.0,0.001658]
[1727453272554,0.85742364,66269.0,66268.0,0.001658]
[1727453273497,0.85742364,66269.0,66268.0,0.014658]
[1727453273724,0.94696193,66269.0,66268.0,0.014658]
[1727453273944,0.94696193,66269.0,66268.0,0.027658]
[1727453275584,0.95192931,66269.0,66268.0,0.027658]
[1727453275844,0.95196931,66269.0,66268.0,0.027658]
[1727453276778,0.97562822,66269.0,66268.0,0.027658]
[1727453277235,0.88608993,66269.0,66268.0,0.027658]
[1727453278156,0.90188017,66269.0,66268.0,0.027658]
[1727453278406,1.05826823,66269.0,66268.0,0.027658]
[1727453278642,0.90188017,66269.0,66268.0,0.027658]
[1727453279556,0.99135892,66269.0,66268.0,0.027658]
[1727453279786,0.90188017,66269.0,66268.0,0.027658]
[1727453280532,0.64957149,66269.0,66268.0,0.027658]
[1727453280805,0.64957149,66269.0,66268.0,0.178358]
[1727453280806,0.42698556,66269.0,66268.0,0.178358]
[1727453281032,0.32698556,66269.0,66268.0,0.178358]
[1727453281985,0.31119532,66269.0,66268.0,0.178358]
[1727453282943,0.41119532,66269.0,66268.0,0.631058]
[1727453285784,0.43485039,66269.0,66268.0,0.631058]
[1727453286002,0.47967521,66269.0,66268.0,0.631058]
[1727453286237,0.27898301,66269.0,66268.0,0.78196]
[1727453286473,0.27898301,66269.0,66268.0,0.86176]
[1727453286474,0.02369507,66269.0,66268.0,0.86176]
[1727453286698,4e-05,66269.0,66268.0,0.86176]
[1727453287440,4e-05,66269.0,66268.0,0.83576]
[1727453287680,4e-05,66269.0,66268.0,0.84976]
[1727453287928,0.00104,66269.0,66268.0,0.84976]
[1727453288437,4e-05,66269.0,66268.0,0.83576]
[1727453288662,0.00104,66269.0,66268.0,0.84976]
[1727453289659,0.00104,66269.0,66268.0,0.698858]
[1727453289906,0.00104,66269.0,66268.0,0.712858]
[1727453290126,4e-05,66269.0,66268.0,0.84976]
[1727453290372,4e-05,66269.0,66268.0,0.698858]
[1727453291296,4e-05,66269.0,66268.0,0.712858]
[1727453291512,4e-05,66269.0,66268.0,0.684858]
[1727453291738,4e-05,66269.0,66268.0,0.698858]
[1727453291975,4e-05,66269.0,66268.0,0.712858]
[1727453292215,4e-05,66269.0,66268.0,0.698858]
[1727453292437,4e-05,66269.0,66268.0,0.712858]
[1727453293131,4e-05,66269.0,66268.0,0.698858]
[1727453293356,4e-05,66269.0,66268.0,0.712858]
[1727453293608,4e-05,66269.0,66268.0,0.86376]
[1727453294752,4e-05,66269.0,66268.0,0.83576]
[1727453295214,4e-05,66269.0,66268.0,0.86376]
[1727453298058,4e-05,66269.0,66268.0,0.86576]
[1727453298298,4e-05,66269.0,66268.0,0.86376]
[1727453298748,4e-05,66269.0,66268.0,0.86576]
[1727453298996,4e-05,66269.0,66268.0,0.86376]
[1727453299476,4e-05,66269.0,66268.0,0.87054996]
[1727453303064,4e-05,66269.0,66268.0,0.48914796]
[1727453303065,0.15532794,66269.0,66268.0,0.48914796]
[1727453303314,0.81409114,66269.0,66268.0,0.48914796]
[1727453303569,0.68284665,66269.0,66268.0,0.48914796]
[1727453303814,0.81724856,66269.0,66268.0,0.468358]
[1727453304047,0.68284665,66269.0,66268.0,0.454358]
[1727453304315,0.68284665,66269.0,66268.0,0.482358]
[1727453304552,0.68284665,66269.0,66268.0,0.468358]
[1727453304789,0.68284665,66269.0,66268.0,0.465358]
[1727453304982,0.68284665,66269.0,66268.0,0.477358]
[1727453305205,0.68781715,66269.0,66268.0,0.477358]
[1727453305447,0.82221906,66269.0,66268.0,0.477358]
[1727453305693,0.82221906,66269.0,66268.0,0.466358]
[1727453306388,0.98181906,66269.0,66268.0,0.466358]
[1727453306637,0.9817221,66269.0,66268.0,0.454358]
[1727453306862,0.84741715,66269.0,66268.0,0.468358]
[1727453307089,1.04802843,66269.0,66268.0,0.482358]
[1727453307335,1.0813523,66269.0,66268.0,0.454358]
[1727453307568,1.10301239,66269.0,66268.0,0.466358]
[1727453307822,1.10301239,66269.0,66268.0,0.478358]
[1727453308058,0.94662433,66269.0,66268.0,0.466358]
[1727453308280,1.12023301,66269.0,66268.0,0.459358]
[1727453308532,1.12023301,66269.0,66268.0,0.465358]
[1727453308756,1.27124945,66269.0,66268.0,0.460358]
[1727453309704,1.27124945,66269.0,66268.0,0.454358]
[1727453309929,1.37375009,66269.0,66268.0,0.459358]
[1727453310156,1.49887326,66269.0,66268.0,0.459358]
[1727453310608,1.49887326,66269.0,66268.0,0.454358]
[1727453310609,1.47521317,66269.0,66268.0,0.454358]
[1727453310850,1.19907356,66269.0,66268.0,0.459358]
[1727453311326,1.00650385,66269.0,66268.0,0.458358]
[1727453311622,0.90393372,66269.0,66268.0,0.458358]
[1727453311848,0.8597497,66269.0,66268.0,0.463358]
[1727453312092,0.8597497,66269.0,66268.0,0.459358]
[1727453312093,0.90318018,66269.0,66268.0,0.459358]
[1727453312539,0.90318018,66269.0,66268.0,0.464358]
[1727453313021,0.90318018,66269.0,66268.0,0.459358]
[1727453313255,0.85899588,66269.0,66268.0,0.465358]
[1727453313710,0.85899588,66269.0,66268.0,0.454358]
[1727453313945,0.85899588,66269.0,66268.0,0.460358]
[1727453314179,0.85899588,66269.0,66268.0,0.467358]
[1727453314427,0.85899588,66269.0,66268.0,0.461358]
[1727453314645,0.99314886,66269.0,66268.0,0.464358]
[1727453314876,1.14953692,66269.0,66268.0,0.454358]
[1727453315107,1.14953692,66269.0,66268.0,0.467358]
[1727453315350,0.90317319,66269.0,66268.0,0.467358]
[1727453315591,0.90317312,66269.0,66268.0,0.467358]
[1727453316071,0.90317312,66269.0,66268.0,0.478358]
[1727453316583,0.90271616,66269.0,66268.0,0.465358]
[1727453317037,0.85853892,66269.0,66268.0,0.474358]
[1727453317260,0.85853892,66269.0,66268.0,0.465358]
[1727453317487,0.85853892,66269.0,66268.0,0.475358]
[1727453317488,0.90270675,66269.0,66268.0,0.475358]
[1727453317987,1.00743967,66269.0,66268.0,0.475358]
[1727453318248,1.02323074,66269.0,66268.0,0.475358]
[1727453319849,0.97906291,66269.0,66268.0,0.475358]
[1727453320472,1.02321309,66269.0,66268.0,0.475358]
[1727453320690,0.97906291,66269.0,66268.0,0.475358]
[1727453321727,1.11304255,66269.0,66268.0,0.475358]
[1727453322124,0.97896428,66269.0,66268.0,0.475358]
[1727453322576,1.00830451,66269.0,66268.0,0.475358]
[1727453322792,0.87423136,66269.0,66268.0,0.475358]
[1727453325638,0.87423136,66269.0,66267.0,0.000828]
[1727453325639,0.267902,66268.0,66267.0,0.000828]
[1727453325841,0.50672668,66261.0,66260.0,0.000828]
[1727453326056,0.85794779,66261.0,66260.0,0.000828]
[1727453326936,0.86279099,66261.0,66260.0,0.000828]
[1727453328005,0.86279099,66261.0,66260.0,0.006828]
[1727453328224,0.66685782,66261.0,66260.0,0.006828]
[1727453328401,0.86136907,66261.0,66260.0,0.006828]
[1727453328607,0.66685782,66261.0,66260.0,0.006828]
[1727453328818,0.86155086,66261.0,66260.0,0.006828]
[1727453329056,0.73488429,66261.0,66260.0,0.012828]
[1727453329271,0.66785782,66261.0,66260.0,0.012828]
[1727453329481,0.41204914,66261.0,66260.0,0.012828]
[1727453329715,0.41104914,66261.0,66260.0,0.006828]
[1727453330546,0.41204914,66261.0,66260.0,0.007828]
[1727453330952,0.41204914,66261.0,66260.0,0.013828]
[1727453331172,0.41104914,66261.0,66260.0,0.000828]
[1727453331382,0.41104914,66261.0,66260.0,0.013828]
[1727453331595,0.41204914,66261.0,66260.0,0.013828]
[1727453331802,0.41104914,66261.0,66260.0,0.000828]
[1727453332271,0.41304914,66261.0,66260.0,0.005828]
[1727453332477,0.41204914,66261.0,66260.0,0.001828]
[1727453332681,0.41104914,66261.0,66260.0,0.000828]
[1727453333099,0.41204914,66261.0,66260.0,0.001828]
[1727453333588,0.58547623,66261.0,66260.0,0.001828]
[1727453333790,0.58647623,66261.0,66260.0,0.015828]
[1727453334221,0.58647623,66261.0,66260.0,0.014828]
[1727453334222,0.61347623,66261.0,66260.0,0.014828]
[1727453334444,0.61347623,66261.0,66260.0,0.000828]
[1727453334445,0.80975608,66261.0,66260.0,0.000828]
[1727453334657,0.96614414,66261.0,66260.0,0.000828]
[1727453334866,0.96614414,66261.0,66260.0,0.014828]
[1727453334867,1.10257936,66261.0,66260.0,0.014828]
[1727453335072,1.10157936,66261.0,66260.0,0.000828]
[1727453335281,0.8334209,66261.0,66260.0,0.000828]
[1727453335485,0.8334209,66261.0,66260.0,0.005828]
[1727453335701,0.87871327,66261.0,66260.0,0.011828]
[1727453336126,0.87871327,66261.0,66260.0,0.000828]
[1727453336127,0.87571327,66261.0,66260.0,0.000828]
[1727453336336,0.87071327,66261.0,66260.0,0.000828]
[1727453336603,0.67510459,66261.0,66260.0,0.006828]
[1727453336810,0.65143977,66261.0,66260.0,0.006828]
[1727453337249,0.65043977,66261.0,66260.0,0.000828]
[1727453337687,0.6741038,66261.0,66260.0,0.005828]
[1727453338112,0.6751038,66261.0,66260.0,0.006828]
[1727453338951,0.6761038,66261.0,66260.0,0.014828]
[1727453339362,0.83249186,66261.0,66260.0,0.014828]
[1727453339503,0.6761038,66261.0,66260.0,0.014828]
[1727453339701,0.6751038,66261.0,66260.0,0.008828]
[1727453340305,0.6831038,66261.0,66260.0,0.017828]
[1727453340507,0.6811038,66261.0,66260.0,0.017828]
[1727453340805,0.6761038,66261.0,66260.0,0.017828]
[1727453342339,0.6761438,66261.0,66260.0,0.017828]
[1727453343458,0.6761438,66261.0,66260.0,0.178728]
[1727453343688,0.66445184,66261.0,66260.0,0.178728]
[1727453343918,0.64205023,66261.0,66260.0,0.178728]
[1727453344381,0.31456555,66261.0,66260.0,0.178728]
[1727453344620,0.60042523,66261.0,66260.0,0.178728]
[1727453344848,0.31456555,66261.0,66260.0,0.178728]
[1727453345094,0.41456555,66261.0,66260.0,0.178728]
[1727453345340,0.48176567,66261.0,66260.0,0.178728]
[1727453345563,0.61134546,66261.0,66260.0,0.178728]
[1727453345803,0.70091592,66261.0,66260.0,0.178728]
[1727453346279,0.72331753,66261.0,66260.0,0.178728]
[1727453346508,0.61134546,66261.0,66260.0,0.178728]
[1727453347946,0.63500733,66261.0,66260.0,0.178728]
[1727453348179,0.63500733,66261.0,66260.0,0.256128]
[1727453348423,0.61134546,66261.0,66260.0,0.256128]
[1727453349555,0.60650226,66261.0,66260.0,0.256128]
[1727453350225,0.60650226,66261.0,66260.0,0.239128]
[1727453350226,0.60450226,66261.0,66260.0,0.239128]
[1727453350451,0.71775578,66261.0,66260.0,0.253128]
[1727453350653,0.71875578,66261.0,66260.0,0.267128]
[1727453350901,0.71775578,66261.0,66260.0,0.253128]
[1727453351360,0.71875578,66261.0,66260.0,0.267128]
[1727453351572,0.71775578,66261.0,66260.0,0.253128]
[1727453351808,0.60650226,66261.0,66260.0,0.267128]
[1727453353203,0.69627623,66261.0,66260.0,0.267128]
[1727453353425,0.69626819,66261.0,66260.0,0.267128]
[1727453354115,0.69626819,66261.0,66260.0,0.719888]
[1727453354342,0.60650226,66261.0,66260.0,0.719888]
[1727453354568,0.40972235,66261.0,66260.0,0.719888]
[1727453354813,0.69703816,66261.0,66260.0,0.719888]
[1727453355067,0.60722997,66261.0,66260.0,0.719888]
[1727453355326,0.14857499,66261.0,66260.0,0.870808]
[1727453355590,0.003698,66261.0,66260.0,0.870808]
[1727453357478,0.003698,66261.0,66260.0,0.719888]
[1727453357713,0.154616,66261.0,66260.0,0.719888]
[1727453357947,0.003698,66261.0,66260.0,0.719888]
[1727453359114,0.154616,66261.0,66260.0,0.719888]
[1727453361390,0.003698,66261.0,66260.0,0.719888]
[1727453361618,0.154616,66261.0,66260.0,0.719888]
[1727453362082,0.003698,66261.0,66260.0,0.719888]
[1727453362583,0.154616,66261.0,66260.0,0.719888]
[1727453362821,0.003698,66261.0,66260.0,0.719888]
[1727453363250,0.154616,66261.0,66260.0,0.719888]
[1727453363903,0.003698,66261.0,66260.0,0.719888]
[1727453364124,0.003698,66261.0,66260.0,0.870808]
[1727453364381,0.37566057,66267.0,66266.0,0.150906]
[1727453364382,0.001658,66267.0,66266.0,0.150906]
[1727453364612,0.001658,66267.0,66266.0,0.842626]
[1727453365940,0.001658,66267.0,66266.0,0.856626]
[1727453366623,0.001658,66267.0,66266.0,0.842626]
[1727453366838,0.001658,66267.0,66266.0,0.856626]
[1727453367044,0.001658,66267.0,66266.0,0.870626]
[1727453373464,0.001658,66267.0,66266.0,0.71972]
[1727453373691,0.152562,66267.0,66266.0,0.71972]
[1727453373897,0.001658,66267.0,66266.0,0.71972]
[1727453374326,0.001658,66267.0,66266.0,0.69172]
[1727453374545,0.001658,66267.0,66266.0,0.870626]
[1727453375389,0.001658,66267.0,66266.0,0.71972]
[1727453376249,0.001658,66267.0,66266.0,0.870626]
[1727453379397,0.001658,66267.0,66266.0,0.842626]
[1727453379631,0.001658,66267.0,66266.0,0.856626]
[1727453379850,0.001658,66267.0,66266.0,0.870626]
[1727453385412,0.001658,66267.0,66266.0,1.09705989]
[1727453385656,0.001658,66267.0,66266.0,0.870626]
[1727453395229,0.000658,66267.0,66266.0,0.870626]
[1727453395913,0.000358,66267.0,66266.0,0.870626]
[1727453396143,0.150791,66272.0,66268.0,0.1509]
[1727453396384,0.150791,66272.0,66269.0,0.4527]
[1727453396650,0.150591,66272.0,66269.0,0.4527]
[1727453396875,0.149991,66272.0,66269.0,0.603599]
[1727453397088,0.149791,66272.0,66269.0,0.603599]
[1727453397528,0.149591,66272.0,66269.0,0.603599]
[1727453397783,0.149091,66272.0,66269.0,0.617599]
[1727453397990,0.148891,66272.0,66269.0,0.617599]
[1727453398438,0.148591,66272.0,66269.0,0.617599]
[1727453398690,0.147991,66272.0,66269.0,0.631599]
[1727453398924,0.147891,66272.0,66269.0,0.631599]
[1727453399150,0.147791,66272.0,66269.0,0.631599]
[1727453399379,0.147591,66272.0,66269.0,0.631599]
[1727453399607,0.19580959,66273.0,66269.0,0.631599]
[1727453400281,0.150894,66272.0,66269.0,0.631599]
[1727453400531,0.19581159,66272.0,66269.0,0.631599]
[1727453400789,0.04496429,66272.0,66270.0,0.150896]
[1727453401018,0.150893,66272.0,66271.0,0.45269]
[1727453401455,0.06744644,66273.0,66271.0,0.45269]
[1727453401666,0.21833744,66273.0,66271.0,0.45269]
[1727453401900,0.150893,66272.0,66271.0,0.45269]
[1727453402112,0.19586511,66272.0,66271.0,0.45269]
[1727453402342,0.04498267,66272.0,66271.0,0.45269]
[1727453402584,0.04498616,66272.0,66271.0,0.45269]
[1727453402793,0.06744644,66273.0,66271.0,0.45269]
[1727453403027,0.06744644,66272.0,66271.0,0.46669]
[1727453403520,0.21833844,66273.0,66271.0,0.46669]
[1727453403726,0.04499278,66277.0,66272.0,0.40004257]
[1727453403947,0.06910444,66278.0,66276.0,0.150883]
[1727453403948,0.04665078,66278.0,66276.0,0.150883]
[1727453404189,0.001658,66278.0,66277.0,0.45265]
[1727453404396,0.001658,66278.0,66277.0,0.603531]
[1727453404644,0.04665344,66278.0,66277.0,0.603531]
[1727453405755,0.04665344,66278.0,66277.0,0.45265]
[1727453405981,0.59783061,66278.0,66277.0,0.45265]
[1727453406205,0.58433972,66278.0,66277.0,0.46665]
[1727453406680,0.58433972,66278.0,66277.0,0.48065]
[1727453406923,0.58433972,66278.0,66277.0,0.46665]
[1727453407380,0.58433972,66278.0,66277.0,0.48065]
[1727453408032,0.58433972,66278.0,66277.0,0.46665]
[1727453408482,0.20167278,66278.0,66277.0,0.48065]
[1727453408697,0.001658,66278.0,66277.0,0.93813968]
[1727453408925,0.001658,66278.0,66277.0,1.00003968]
[1727453409404,0.001658,66278.0,66277.0,1.01403968]
[1727453410099,0.001658,66278.0,66277.0,1.00003968]
[1727453410328,0.00040979,66279.0,66277.0,0.86815868]
[1727453410573,0.22808989,66291.0,66285.0,0.301724]
[1727453410809,0.22808989,66291.0,66290.0,0.354252]
[1727453411059,0.22808989,66291.0,66290.0,0.806812]
[1727453411060,0.001656,66291.0,66290.0,0.806812]
[1727453411282,0.152506,66291.0,66290.0,0.45256]
[1727453411501,0.30779394,66291.0,66290.0,0.45256]
[1727453412182,0.35284484,66291.0,66290.0,0.45256]
[1727453412622,0.35284484,66291.0,66290.0,0.46656]
[1727453413256,0.30779394,66291.0,66290.0,0.46656]
[1727453413487,0.30779394,66291.0,66290.0,0.48056]
[1727453415539,0.15694394,66291.0,66290.0,0.48056]
[1727453415762,0.50889133,66291.0,66290.0,0.48056]
[1727453415996,0.59888201,66291.0,66290.0,0.48056]
[1727453416227,0.50889133,66291.0,66290.0,0.48056]
[1727453416440,0.59887381,66291.0,66290.0,0.48056]
[1727453416900,0.44802381,66291.0,66290.0,0.45256]
[1727453417127,0.20193728,66291.0,66290.0,0.617412]
[1727453417374,0.15694394,66291.0,66290.0,0.46656]
[1727453417614,0.15694394,66291.0,66290.0,0.617412]
[1727453418057,0.001656,66291.0,66290.0,0.80502068]
[1727453418506,0.001656,66291.0,66290.0,0.79102068]
[1727453419166,0.001656,66291.0,66290.0,0.617412]
[1727453419403,0.001656,66291.0,66290.0,0.631412]
[1727453421961,0.001656,66291.0,66290.0,0.765712]
[1727453422196,0.001656,66291.0,66290.0,0.842612]
[1727453422734,0.001656,66291.0,66290.0,0.844612]
[1727453422949,0.001656,66291.0,66290.0,0.842612]
[1727453423168,0.001656,66291.0,66290.0,0.828612]
[1727453423639,0.001656,66291.0,66290.0,0.842612]
[1727453423907,0.001656,66291.0,66290.0,0.828612]
[1727453424602,0.001656,66291.0,66290.0,0.84924296]
[1727453425787,0.001656,66291.0,66290.0,0.842612]
[1727453426553,0.001656,66302.0,66290.0,0.842612]
[1727453426554,0.001656,66302.0,66301.0,0.150827]
[1727453426785,0.001656,66302.0,66301.0,0.98053176]
[1727453427017,0.001656,66302.0,66301.0,0.97751568]
[1727453428440,0.001656,66302.0,66301.0,0.99151568]
[1727453428674,0.001656,66302.0,66301.0,1.00551568]
[1727453428897,0.001656,66302.0,66301.0,0.97751568]
[1727453429125,0.001656,66302.0,66301.0,0.99151568]
[1727453429353,0.001656,66302.0,66301.0,1.00551568]
[1727453430361,0.001656,66302.0,66301.0,0.92901568]
[1727453431527,0.001656,66302.0,66301.0,0.755407]
[1727453431771,0.001656,66302.0,66301.0,0.92901568]
[1727453432005,0.001656,66302.0,66301.0,0.755407]
[1727453434306,0.001656,66302.0,66301.0,0.92901568]
[1727453440951,0.001656,66302.0,66301.0,0.91501568]
[1727453441206,0.001656,66302.0,66301.0,0.741407]
[1727453441473,0.001656,66302.0,66301.0,0.755407]
[1727453442214,0.001656,66302.0,66301.0,0.741407]
[1727453442460,0.001656,66302.0,66301.0,0.755407]
[1727453446177,0.001656,66302.0,66301.0,0.92901568]
[1727453453656,0.001656,66302.0,66301.0,1.01211568]
[1727453454569,0.001656,66302.0,66301.0,1.01411568]
[1727453455755,0.001656,66302.0,66301.0,1.01211568]
[1727453458095,0.001656,66302.0,66301.0,1.01411568]
[1727453458338,0.001656,66302.0,66301.0,0.98611568]
[1727453458820,0.001656,66302.0,66301.0,1.01411568]
[1727453460462,0.001656,66302.0,66301.0,0.954172]
[1727453461480,0.001656,66302.0,66301.0,0.952172]
[1727453464366,0.001656,66302.0,66301.0,0.954172]
[1727453470809,0.001656,66302.0,66301.0,1.18060589]
[1727453471066,0.01743725,66311.0,66301.0,1.18060589]
[1727453471067,0.01743725,66311.0,66310.0,0.464971]
[1727453471321,0.01743725,66311.0,66310.0,0.919391]
[1727453471322,0.001656,66311.0,66310.0,0.919391]
[1727453471572,0.001656,66311.0,66310.0,0.92640847]
[1727453472067,0.001656,66311.0,66310.0,0.93140847]
[1727453472295,0.001656,66311.0,66310.0,0.94540847]
[1727453472519,0.001656,66311.0,66310.0,0.93140847]
[1727453473000,0.001656,66311.0,66310.0,0.94540847]
[1727453473235,0.001656,66311.0,66310.0,0.93140847]
[1727453473475,0.001656,66317.0,66316.0,0.002]
[1727453473729,0.0009841,66324.0,66322.0,0.469244]
[1727453473971,0.22809189,66334.0,66322.0,0.469244]
[1727453474200,0.22809189,66334.0,66322.0,0.92894928]
[1727453474460,0.22809189,66334.0,66322.0,0.98834467]
[1727453474963,0.001658,66334.0,66322.0,0.98834467]
[1727453475219,0.001658,66334.0,66322.0,1.00234467]
[1727453475501,0.001658,66334.0,66322.0,1.01634467]
[1727453478867,0.001658,66334.0,66322.0,0.84328428]